bitfinex/quotes_SOLUSD_20241103
["timestamp","ask_amount","ask_price","bid_price","bid_amount"]
[1730633918814,0.2986027,163.76,163.75,0.12549]
[1730633924215,0.2986027,163.76,163.72,0.25098]
[1730633924816,0.2986027,163.76,163.73,0.22549]
[1730633925190,0.2986027,163.76,163.73,0.25098]
[1730633926093,0.2986027,163.76,163.73,0.35098]
[1730633927513,0.2986027,163.76,163.73,0.25098]
[1730633928714,0.2986027,163.76,163.73,0.35098]
[1730633932324,0.2986027,163.76,163.73,0.25098]
[1730633934213,0.2986027,163.76,163.74,6.35501087]
[1730633940401,0.2986027,163.76,163.71,0.35098]
[1730633940603,0.2986027,163.76,163.74,6.35693375]
[1730633941018,0.2986027,163.76,163.74,0.37647]
[1730633941322,0.2986027,163.76,163.74,30.50947714]
[1730633944935,0.2986027,163.76,163.74,30.60947714]
[1730633945222,0.2986027,163.76,163.75,20.47647]
[1730633947517,0.2986027,163.76,163.75,20.37647]
[1730633953308,0.2986027,163.76,163.74,30.13300714]
[1730633953309,0.2986027,163.76,163.74,6.35612314]
[1730633963847,0.2986027,163.76,163.75,0.37647]
[1730633964442,0.2986027,163.76,163.75,24.253354]
[1730633964646,0.2986027,163.76,163.75,24.153354]
[1730633970547,0.2986027,163.76,163.75,0.37647]
[1730633971352,0.2986027,163.76,163.74,6.35612314]
[1730633972020,0.2986027,163.76,163.68,16.5025]
[1730633972222,0.2986027,163.76,163.66,8.53257478]
[1730633972223,0.2986027,163.76,163.7,6.35230831]
[1730633972929,0.2986027,163.76,163.66,0.12549]
[1730633973127,0.2986027,163.76,163.66,6.47734873]
[1730633973533,0.2986027,163.76,163.68,0.12549]
[1730633977251,0.2986027,163.76,163.67,20.25098]
[1730633977440,0.2986027,163.76,163.67,20.0]
[1730633978851,0.2986027,163.76,163.66,6.35185873]
[1730633983379,0.2986027,163.76,163.67,0.12549]
[1730633983561,0.2986027,163.76,163.67,20.47647]
[1730633983933,0.2986027,163.76,163.67,0.47647]
[1730633984240,0.2986027,163.76,163.67,20.47647]
[1730633984840,0.2986027,163.76,163.67,20.37647]
[1730633986152,24.0754867,163.76,163.66,6.35501319]
[1730633988271,0.2986027,163.76,163.66,6.35501319]
[1730633988585,0.2986027,163.76,163.67,0.37647]
[1730633990975,0.2986027,163.76,163.67,20.37647]
[1730633991477,0.2986027,163.76,163.69,0.37647]
[1730633993176,0.2986027,163.76,163.69,20.37647]
[1730633995178,0.2986027,163.76,163.69,20.47647]
[1730633995977,0.2986027,163.76,163.69,20.57647]
[1730633996279,0.2986027,163.76,163.71,20.37647]
[1730633996573,0.2986027,163.76,163.73,20.37647]
[1730634000072,0.2986027,163.76,163.73,20.47647]
[1730634000376,0.2986027,163.76,163.75,0.37647]
[1730634001165,0.2986027,163.76,163.75,20.37647]
[1730634007480,0.2986027,163.76,163.75,44.153354]
[1730634007677,0.2986027,163.76,163.75,44.353354]
[1730634009079,0.2986027,163.76,163.75,67.086754]
[1730634012364,0.2986027,163.76,163.75,40.792554]
[1730634012570,0.2986027,163.76,163.75,0.37647]
[1730634013399,0.2986027,163.76,163.74,0.1]
[1730634013580,0.2986027,163.76,163.73,0.22549]
[1730634013780,0.2986027,163.76,163.73,0.32549]
[1730634014575,0.2986027,163.76,163.74,0.47647]
[1730634014876,0.2986027,163.76,163.74,24.253354]
[1730634015089,0.2986027,163.76,163.75,20.37647]
[1730634016182,0.2986027,163.76,163.75,0.37647]
[1730634021893,0.2986027,163.76,163.71,6.35327346]
[1730634023271,0.2986027,163.76,163.72,0.12549]
[1730634023774,0.2986027,163.76,163.73,0.12549]
[1730634023988,0.2986027,163.76,163.73,0.25098]
[1730634024787,0.2986027,163.76,163.74,0.25098]
[1730634024996,0.2986027,163.76,163.75,0.12549]
[1730634025295,0.2986027,163.76,163.75,0.37647]
[1730634028193,0.2986027,163.76,163.75,44.153354]
[1730634031374,0.2986027,163.76,163.75,44.253354]
[1730634031700,0.2986027,163.76,163.75,44.353354]
[1730634037792,0.2986027,163.76,163.73,6.35158311]
[1730634051813,0.2986027,163.76,163.74,0.37647]
[1730634055111,0.2986027,163.76,163.74,20.37647]
[1730634055490,0.2986027,163.76,163.75,44.153354]
[1730634060112,0.2986027,163.76,163.75,44.353354]
[1730634060420,0.2986027,163.76,163.75,52.41092323]
[1730634060721,0.2986027,163.76,163.75,57.75174403]
[1730634062421,0.2986027,163.76,163.75,52.41092323]
[1730634064603,0.2986027,163.76,163.75,44.353354]
[1730634065202,0.2986027,163.76,163.75,24.353354]
[1730634066600,0.2986027,163.76,163.75,44.353354]
[1730634074415,0.11300041,163.84,163.8,0.22549]
[1730634074622,0.11300041,163.84,163.83,0.37647]
[1730634077320,0.11300041,163.84,163.78,20.0]
[1730634077529,0.11300041,163.84,163.8,20.0]
[1730634078118,0.11300041,163.84,163.81,0.12549]
[1730634078712,0.11300041,163.84,163.81,0.37647]
[1730634084225,0.11300041,163.84,163.83,0.12549]
[1730634084424,0.11300041,163.84,163.83,0.37647]
[1730634086821,0.11300041,163.84,163.78,0.25098]
[1730634087002,0.11300041,163.84,163.8,0.37647]
[1730634089225,0.11300041,163.84,163.78,6.35136635]
[1730634089428,16.5775,163.83,163.78,6.35136635]
[1730634094032,16.5775,163.83,163.71,44.027864]
[1730634094230,16.5775,163.83,163.75,6.33684191]
[1730634094537,16.5775,163.83,163.72,0.12549]
[1730634094735,16.5775,163.83,163.75,6.33688998]
[1730634095037,16.5775,163.83,163.72,0.12549]
[1730634095344,16.5775,163.83,163.75,6.33683292]
[1730634095521,16.5775,163.83,163.72,0.12549]
[1730634096040,16.5775,163.83,163.72,0.25098]
[1730634096243,16.5775,163.83,163.74,0.12549]
[1730634096423,16.5775,163.83,163.75,0.12549]
[1730634102444,16.5775,163.83,163.73,6.33655321]
[1730634105354,23.776884,163.82,163.73,6.33655321]
[1730634107447,22.7193,163.81,163.73,6.33655321]
[1730634107954,22.7193,163.81,163.67,24.253354]
[1730634108248,22.7193,163.81,163.71,0.25098]
[1730634108626,41.0593,163.81,163.71,0.12549]
[1730634108834,23.776884,163.8,163.7,6.33919516]
[1730634110031,6.1418,163.77,163.7,6.33919516]
[1730634110234,6.1418,163.77,163.63,17.28911979]
[1730634110435,23.776884,163.76,163.63,17.28911979]
[1730634110636,6.1418,163.77,163.67,0.12549]
[1730634111535,6.1418,163.77,163.68,0.25098]
[1730634111752,6.1418,163.77,163.69,0.12549]
[1730634119552,16.5775,163.79,163.69,0.12549]
[1730634119853,16.5775,163.79,163.71,0.12549]
[1730634120736,16.5775,163.79,163.7,0.25098]
[1730634127060,6.1387,163.81,163.71,0.12549]
[1730634128741,6.1387,163.81,163.7,20.25098]
[1730634128941,6.1387,163.81,163.7,0.25098]
[1730634129461,15.2941,163.79,163.69,0.25098]
[1730634129673,15.2941,163.79,163.7,0.12549]
[1730634130160,42.116884,163.78,163.68,6.34295509]
[1730634131865,23.776884,163.76,163.68,6.34295509]
[1730634134356,23.776884,163.73,163.64,0.18560229]
[1730634134945,6.503,163.77,163.64,0.18560229]
[1730634135150,6.503,163.77,163.65,0.12549]
[1730634135965,6.503,163.77,163.65,0.37647]
[1730634138359,16.4923,163.79,163.69,0.12549]
[1730634138565,6.503,163.81,163.71,0.12549]
[1730634144746,40.269184,163.8,163.69,0.25098]
[1730634145650,40.269184,163.8,163.7,0.12549]
[1730634146755,16.4923,163.8,163.7,0.12549]
[1730634154866,23.776884,163.83,163.72,0.12549]
[1730634155068,15.29480041,163.84,163.74,0.12549]
[1730634158076,23.776884,163.83,163.73,0.12549]
[1730634158371,42.116884,163.83,163.7,0.25098]
[1730634158579,42.116884,163.83,163.71,0.12549]
[1730634160254,23.776884,163.83,163.71,0.12549]
[1730634160462,15.29480041,163.84,163.73,0.12549]
[1730634160672,15.29480041,163.84,163.74,0.25098]
[1730634165178,15.29480041,163.84,163.75,0.12549]
[1730634173286,0.11300041,163.84,163.75,0.12549]
[1730634175060,0.11300041,163.84,163.79,0.12549]
[1730634179185,0.11300041,163.84,163.8,0.12549]
[1730634180982,0.11300041,163.84,163.81,0.12549]
[1730634181182,0.11300041,163.84,163.83,0.37647]
[1730634181496,0.11300041,163.84,163.83,0.25098]
[1730634181693,0.11300041,163.84,163.83,0.37647]
[1730634182581,0.11300041,163.84,163.83,24.253354]
[1730634182800,0.11300041,163.84,163.83,66.570254]
[1730634183905,0.11300041,163.84,163.83,66.670254]
[1730634184108,0.2986027,163.93,163.87,0.12549]
[1730634184387,0.2986027,163.93,163.89,0.12549]
[1730634184568,0.2986027,163.93,163.9,0.25098]
[1730634184770,0.2986027,163.93,163.92,0.12549]
[1730634184966,0.2986027,163.93,163.92,0.37647]
[1730634185893,0.2986027,163.93,163.91,0.25098]
[1730634195080,0.2986027,163.93,163.92,0.12549]
[1730634195282,0.2986027,163.93,163.92,0.37647]
[1730634198088,0.2986027,163.93,163.91,0.12549]
[1730634198280,0.2986027,163.93,163.91,0.25098]
[1730634203381,0.2986027,163.93,163.9,0.37647]
[1730634203581,0.2986027,163.93,163.9,20.37647]
[1730634205002,0.2986027,163.93,163.92,0.37647]
[1730634206485,0.2986027,163.93,163.91,0.12549]
[1730634206686,0.2986027,163.93,163.86,20.0]
[1730634207009,0.2986027,163.93,163.87,0.25098]
[1730634207382,0.2986027,163.93,163.86,6.37208574]
[1730634209599,0.2986027,163.93,163.87,0.12549]
[1730634210000,0.2986027,163.93,163.86,6.37208574]
[1730634213508,0.2986027,163.93,163.87,0.12549]
[1730634218495,0.2986027,163.93,163.87,44.153354]
[1730634218708,0.2986027,163.93,163.87,50.157854]
[1730634222191,0.2986027,163.93,163.86,6.37065229]
[1730634222926,15.6822,163.92,163.86,6.37065229]
[1730634223492,23.776884,163.91,163.86,6.37065229]
[1730634223693,23.776884,163.91,163.79,6.0045]
[1730634223898,23.776884,163.91,163.82,6.37354251]
[1730634224104,23.776884,163.91,163.8,0.12549]
[1730634224622,23.776884,163.91,163.81,6.3737572]
[1730634225205,23.776884,163.91,163.82,0.12549]
[1730634225595,23.776884,163.91,163.81,6.3737572]
[1730634225920,42.116884,163.91,163.81,6.3737572]
[1730634241518,23.776884,163.91,163.82,0.12549]
[1730634241711,34.0222,163.92,163.82,0.25098]
[1730634242616,34.0222,163.92,163.82,0.12549]
[1730634243018,23.776884,163.91,163.82,0.12549]
[1730634257914,0.2986027,163.93,163.84,0.37647]
[1730634258119,0.2986027,163.93,163.84,20.37647]
[1730634259814,0.2986027,163.93,163.84,0.37647]
[1730634260020,0.2986027,163.93,163.84,20.37647]
[1730634261641,0.2986027,163.93,163.83,15.5352]
[1730634270015,0.3986027,163.93,163.82,0.12549]
[1730634270337,0.2986027,163.93,163.82,0.12549]
[1730634270840,0.2986027,163.93,163.82,0.25098]
[1730634271047,0.2986027,163.93,163.82,20.25098]
[1730634272638,0.2986027,163.93,163.82,0.12549]
[1730634273450,0.3986027,163.93,163.82,0.12549]
[1730634274247,42.4154867,163.93,163.82,0.12549]
[1730634274432,42.5154867,163.93,163.82,0.12549]
[1730634275328,42.4154867,163.93,163.82,0.12549]
[1730634278241,42.5154867,163.93,163.82,0.12549]
[1730634279856,0.37647,163.92,163.81,6.36995283]
[1730634280051,42.116884,163.89,163.81,6.36995283]
[1730634280353,42.116884,163.89,163.79,16.627]
[1730634280650,42.116884,163.89,163.79,22.99830161]
[1730634281038,23.057,163.91,163.8,0.12549]
[1730634282254,23.057,163.91,163.8,0.25098]
[1730634287255,16.6452,163.91,163.82,0.12549]
[1730634289034,0.2986027,163.93,163.84,0.12549]
[1730634291843,0.2986027,163.93,163.86,44.153354]
[1730634294957,0.2986027,163.93,163.86,0.25098]
[1730634296253,0.2986027,163.93,163.81,15.1428]
[1730634296467,0.2986027,163.93,163.82,0.12549]
[1730634296763,0.2986027,163.93,163.81,15.1428]
[1730634297274,0.2986027,163.93,163.82,0.12549]
[1730634297666,0.2986027,163.93,163.82,0.25098]
[1730634298069,0.2986027,163.93,163.83,0.12549]
[1730634299351,0.2986027,163.93,163.84,0.25098]
[1730634299669,0.2986027,163.93,163.85,0.12549]
[1730634300276,0.2986027,163.93,163.83,0.25098]
[1730634300475,0.2986027,163.93,163.83,0.12549]
[1730634304869,0.2986027,163.93,163.82,0.25098]
[1730634305079,0.3986027,163.93,163.82,0.37647]
[1730634305383,0.3986027,163.93,163.82,0.12549]
[1730634305384,0.2986027,163.93,163.82,0.12549]
[1730634305562,0.3986027,163.93,163.82,0.12549]
[1730634307459,42.216884,163.9,163.81,6.36675637]
[1730634308968,42.116884,163.9,163.81,6.36675637]
[1730634309168,42.216884,163.9,163.81,6.36675637]
[1730634309858,42.116884,163.9,163.81,6.36675637]
[1730634310384,6.5594,163.91,163.82,0.12549]
[1730634310680,16.1947,163.92,163.82,20.25098]
[1730634311262,16.1947,163.92,163.82,0.12549]
[1730634311463,16.1947,163.92,163.82,20.37647]
[1730634318087,23.876884,163.91,163.81,6.3673618]
[1730634319270,23.776884,163.91,163.81,6.3673618]
[1730634319476,23.876884,163.91,163.81,6.3673618]
[1730634320075,18.33,163.9,163.81,6.3673618]
[1730634321264,23.776884,163.89,163.81,6.3673618]
[1730634321466,48.321984,163.89,163.81,6.3673618]
[1730634322280,48.221984,163.89,163.81,6.3673618]
[1730634324788,48.321984,163.89,163.81,6.3673618]
[1730634325178,48.221984,163.89,163.81,6.3673618]
[1730634327591,48.321984,163.89,163.81,6.3673618]
[1730634328502,48.221984,163.89,163.81,6.3673618]
[1730634329487,6.1151,163.89,163.81,6.3673618]
[1730634329687,23.776884,163.9,163.81,6.3673618]
[1730634330275,23.776884,163.91,163.81,6.3673618]
[1730634330699,42.106884,163.91,163.81,6.3673618]
[1730634341507,0.2986027,163.93,163.84,0.12549]
[1730634341711,0.2986027,163.93,163.85,0.25098]
[1730634341908,0.2986027,163.93,163.86,0.12549]
[1730634342816,0.2986027,163.93,163.87,0.12549]
[1730634343129,0.2986027,163.93,163.88,0.25098]
[1730634343676,0.2986027,163.93,163.87,0.25098]
[1730634344716,0.2986027,163.93,163.86,0.25098]
[1730634345320,0.2986027,163.93,163.87,0.12549]
[1730634346312,0.2986027,163.93,163.86,0.12549]
[1730634351429,0.2986027,163.93,163.83,21.1881]
[1730634351926,0.2986027,163.93,163.84,0.12549]
[1730634352312,0.2986027,163.93,163.84,20.12549]
[1730634352815,0.2986027,163.93,163.85,0.12549]
[1730634353930,0.2986027,163.93,163.86,0.12549]
[1730634355526,0.2986027,163.93,163.87,0.12549]
[1730634358016,0.2986027,163.93,163.87,0.25098]
[1730634358228,0.2986027,163.93,163.89,0.12549]
[1730634359314,0.2986027,163.93,163.88,0.12549]
[1730634360834,0.2986027,163.93,163.91,0.25098]
[1730634361629,0.2986027,163.93,163.92,0.12549]
[1730634361827,0.2986027,163.93,163.92,0.37647]
[1730634364728,0.2986027,163.93,163.92,66.026354]
[1730634365126,0.2986027,164.01,163.98,0.12549]
[1730634365644,0.2986027,164.01,163.97,16.06728]
[1730634366847,0.2986027,164.01,163.98,0.12549]
[1730634367422,0.2986027,164.01,164.0,0.12549]
[1730634370545,0.2986027,164.01,163.99,0.25098]
[1730634375252,0.2986027,164.01,163.99,0.25098]
[1730634377568,0.2986027,164.01,164.0,0.12549]
[1730634379379,0.2986027,164.01,164.0,20.12549]
[1730634379553,0.2986027,164.01,164.0,44.153354]
[1730634381364,0.2986027,164.01,164.0,59.971754]
[1730634381551,0.2986027,164.01,164.0,60.071754]
[1730634383076,0.2986027,164.01,164.0,60.171754]
[1730634383579,0.2986027,164.01,164.0,60.071754]
[1730634384774,0.2986027,164.01,164.0,59.971754]
[1730634384957,0.2986027,164.01,164.0,60.071754]
[1730634385357,0.2986027,164.01,164.0,59.971754]
[1730634385775,0.2986027,164.01,164.0,60.071754]
[1730634386277,0.2986027,164.01,164.0,59.971754]
[1730634387882,0.2986027,164.01,164.0,60.071754]
[1730634388864,0.2986027,164.01,164.0,59.971754]
[1730634389183,0.2986027,164.01,164.0,60.071754]
[1730634389786,0.2986027,164.01,164.0,59.971754]
[1730634395884,0.2986027,164.01,164.0,44.153354]
[1730634398595,0.2986027,164.01,164.0,44.253354]
[1730634399084,0.2986027,164.01,164.0,60.522054]
[1730634400475,0.2986027,164.01,164.0,60.322054]
[1730634401067,0.2986027,164.01,164.0,60.422054]
[1730634401266,0.2986027,164.01,164.0,60.322054]
[1730634401998,0.2986027,164.01,164.0,60.422054]
[1730634402884,0.2986027,164.01,164.0,69.10607878]
[1730634403483,0.2986027,164.01,164.0,69.20607878]
[1730634405370,0.2986027,164.01,164.0,69.10607878]
[1730634405571,0.2986027,164.01,164.0,60.422054]
[1730634405895,0.2986027,164.01,164.0,60.522054]
[1730634406393,0.2986027,164.01,164.0,60.422054]
[1730634406588,0.2986027,164.01,164.0,60.522054]
[1730634407288,0.2986027,164.01,164.0,60.322054]
[1730634410470,0.2986027,164.01,164.0,24.153354]
[1730634412078,0.2986027,164.01,164.0,44.153354]
[1730634414791,0.2986027,164.01,164.0,44.253354]
[1730634415376,0.2986027,164.01,164.0,44.353354]
[1730634420991,0.2986027,164.01,164.0,53.03737878]
[1730634421592,0.2986027,164.01,164.0,52.93737878]
[1730634421795,0.2986027,164.01,164.0,53.03737878]
[1730634422003,0.2986027,164.09,164.02,0.22549]
[1730634422290,0.2986027,164.09,164.03,0.37647]
[1730634423975,0.2986027,164.09,164.03,0.12549]
[1730634424177,15.6657,164.07,163.98,6.36184]
[1730634424395,15.6657,164.07,163.94,18.00375735]
[1730634424780,15.6657,164.07,163.98,6.36247934]
[1730634424991,15.6657,164.07,163.94,18.10375735]
[1730634425304,15.6657,164.07,163.98,6.36257756]
[1730634425609,15.6657,164.07,163.94,18.10375735]
[1730634425782,15.6657,164.07,163.99,24.027864]
[1730634425979,15.6657,164.07,164.0,20.12549]
[1730634426282,15.6657,164.07,164.02,0.12549]
[1730634427796,15.6657,164.07,164.04,0.12549]
[1730634430006,0.2986027,164.09,164.04,0.12549]
[1730634435185,0.2986027,164.09,164.05,0.25098]
[1730634435385,0.2986027,164.09,164.06,0.12549]
[1730634435585,0.2986027,164.09,164.08,0.37647]
[1730634435785,0.2986027,164.09,164.08,24.153354]
[1730634436311,0.2986027,164.09,164.08,44.153354]
[1730634442122,0.2986027,164.09,164.08,0.37647]
[1730634442428,0.2986027,164.09,164.05,15.9683]
[1730634443420,0.2986027,164.09,164.07,20.12549]
[1730634443628,0.2986027,164.09,164.08,20.37647]
[1730634443921,0.2986027,164.09,164.08,44.153354]
[1730634447525,0.2986027,164.09,164.08,44.253354]
[1730634450302,0.2986027,164.09,164.08,53.03737878]
[1730634455208,0.2986027,164.09,164.08,52.93737878]
[1730634455528,0.2986027,164.09,164.08,53.03737878]
[1730634455828,0.2986027,164.09,164.08,52.93737878]
[1730634456406,0.2986027,164.09,164.08,52.83737878]
[1730634457337,0.2986027,164.09,164.08,52.93737878]
[1730634458011,0.2986027,164.09,164.08,52.83737878]
[1730634459231,0.2986027,164.09,164.08,24.153354]
[1730634459528,0.2986027,164.09,164.08,0.37647]
[1730634460626,0.2986027,164.09,164.08,20.37647]
[1730634460834,0.2986027,164.09,164.08,44.153354]
[1730634462726,0.2986027,164.09,164.08,24.153354]
[1730634462939,0.2986027,164.09,164.08,0.25098]
[1730634463313,0.2986027,164.09,164.08,0.37647]
[1730634463627,0.2986027,164.09,164.08,0.12549]
[1730634464427,0.2986027,164.09,164.08,43.902374]
[1730634464817,0.2986027,164.09,164.08,44.153354]
[1730634474245,0.2986027,164.09,164.08,0.37647]
[1730634474424,0.2986027,164.09,164.08,20.37647]
[1730634480242,0.2986027,164.09,164.06,6.35976413]
[1730634480833,15.1154,164.08,164.06,6.35976413]
[1730634481148,15.1154,164.08,163.97,16.0514]
[1730634481149,15.1154,164.08,163.98,0.12549]
[1730634481446,15.1154,164.08,164.03,6.36239052]
[1730634481649,15.1154,164.08,163.98,0.12549]
[1730634482038,15.1154,164.08,164.03,6.36242626]
[1730634482232,15.1154,164.08,163.98,44.153354]
[1730634482441,15.1154,164.08,164.03,6.36234663]
[1730634482951,15.1154,164.08,163.98,44.027864]
[1730634483139,6.5785,164.07,164.03,6.36242769]
[1730634483331,6.5785,164.07,163.99,0.12549]
[1730634483657,6.5785,164.07,164.03,6.36251634]
[1730634483947,6.5785,164.07,163.99,0.37647]
[1730634484122,6.5785,164.07,164.03,6.36254164]
[1730634484327,6.5785,164.07,163.99,0.37647]
[1730634484637,6.5785,164.07,164.04,0.12549]
[1730634496374,6.5785,164.07,164.03,6.36227987]
[1730634496740,6.5785,164.07,163.94,13.05597551]
[1730634497062,6.5785,164.07,164.01,6.36332682]
[1730634497264,6.5785,164.07,163.95,0.12549]
[1730634497442,6.5785,164.07,164.01,6.36555842]
[1730634497853,6.5785,164.07,163.94,13.05597551]
[1730634497854,6.5785,164.07,163.94,11.25482812]
[1730634498060,6.6785,164.07,164.01,6.36571942]
[1730634498246,16.0751,164.06,163.94,0.12549]
[1730634498442,16.0751,164.06,163.98,6.36620708]
[1730634498763,16.0751,164.06,163.94,0.12549]
[1730634498955,6.5694,164.04,163.98,6.36569953]
[1730634499259,16.0751,164.03,163.89,15.8632]
[1730634499569,0.1,164.02,163.95,6.36594009]
[1730634499747,0.1,164.02,163.9,0.12549]
[1730634500065,0.1,164.02,163.94,6.36649373]
[1730634500264,0.1,164.02,163.9,0.12549]
[1730634500655,23.876884,164.02,163.94,6.36636533]
[1730634500848,23.876884,164.02,163.9,20.0]
[1730634501050,23.876884,164.02,163.94,6.36640563]
[1730634501363,23.876884,164.02,163.91,0.37647]
[1730634501865,23.876884,164.02,163.91,0.25098]
[1730634502361,23.876884,164.02,163.92,6.36604882]
[1730634502362,6.5694,164.01,163.92,6.36604882]
[1730634503661,6.5694,164.01,163.93,0.12549]
[1730634505253,6.5694,164.01,163.93,20.25098]
[1730634505570,6.5694,164.01,163.95,0.12549]
[1730634505961,6.5694,164.01,163.92,6.36604882]
[1730634506169,6.5694,164.01,163.93,0.12549]
[1730634508461,6.5694,164.01,163.92,6.36604882]
[1730634517478,6.5694,164.01,163.93,0.12549]
[1730634517682,6.5694,164.01,163.93,0.25098]
[1730634522366,42.106884,164.0,163.92,6.3621626]
[1730634522665,15.0522,163.99,163.92,6.3621626]
[1730634522869,15.1522,163.99,163.92,6.3621626]
[1730634523464,15.0522,163.99,163.92,6.3621626]
[1730634523665,15.0522,163.99,163.87,24.153354]
[1730634523970,15.0522,163.99,163.9,0.12549]
[1730634524889,15.1522,163.99,163.9,0.12549]
[1730634525182,15.0522,163.99,163.9,0.12549]
[1730634525483,15.0522,163.99,163.9,0.37647]
[1730634529273,15.0522,163.99,163.9,20.37647]
[1730634529985,6.5694,164.01,163.9,20.37647]
[1730634530975,23.776884,164.0,163.9,0.37647]
[1730634531174,0.1,163.99,163.9,0.12549]
[1730634531491,15.0522,163.97,163.9,0.12549]
[1730634532180,15.1522,163.97,163.89,6.36151274]
[1730634532383,23.776884,163.96,163.89,6.36151274]
[1730634532682,6.6552,163.95,163.89,6.36151274]
[1730634533587,23.776884,163.94,163.89,6.36151274]
[1730634533795,23.776884,163.94,163.82,16.5842]
[1730634533990,23.776884,163.94,163.83,0.12549]
[1730634534186,0.1,163.93,163.84,6.36140062]
[1730634534897,15.0522,163.92,163.84,6.36140062]
[1730634535189,15.1522,163.92,163.84,6.36140062]
[1730634536189,0.1,163.91,163.82,0.12549]
[1730634536375,23.876884,163.91,163.82,6.48783642]
[1730634536579,0.1,163.9,163.82,6.48783642]
[1730634536799,23.876884,163.91,163.82,6.48783642]
[1730634536980,0.1,163.9,163.82,6.48783642]
[1730634537378,23.876884,163.91,163.82,6.48783642]
[1730634539480,0.1,163.9,163.82,6.36234642]
[1730634539693,6.515,163.89,163.82,6.36234642]
[1730634539888,23.876884,163.88,163.81,0.9152309]
[1730634540383,23.776884,163.85,163.81,0.9152309]
[1730634546002,42.306884,163.85,163.81,0.9152309]
[1730634546325,0.1,163.84,163.81,0.9152309]
[1730634546683,0.2,163.83,163.81,0.9152309]
[1730634547603,23.876884,163.82,163.8,0.2986027]
[1730634549601,0.1,163.81,163.8,0.2986027]
[1730634551518,58.239564,163.81,163.8,0.2986027]
[1730634551719,58.339564,163.81,163.8,0.2986027]
[1730634552198,58.465054,163.81,163.8,0.2986027]
[1730634553310,128.465054,163.81,163.8,0.2986027]
[1730634553857,128.465054,163.81,163.72,0.2986027]
[1730634553858,0.1,163.76,163.72,0.2986027]
[1730634554021,23.776884,163.77,163.72,0.2986027]
[1730634554320,0.1,163.75,163.72,0.2986027]
[1730634554695,0.45098,163.73,163.72,0.2986027]
[1730634555411,0.32549,163.73,163.72,0.2986027]
[1730634556014,0.1,163.73,163.72,0.2986027]
[1730634556219,15.7817,163.75,163.72,0.2986027]
[1730634556513,0.1,163.77,163.72,0.2986027]
[1730634556810,0.1,163.76,163.72,0.2986027]
[1730634557010,0.1,163.75,163.72,0.2986027]
[1730634557229,0.1,163.73,163.72,0.2986027]
[1730634557421,0.2,163.73,163.72,0.2986027]
[1730634557716,0.32549,163.73,163.72,0.2986027]
[1730634557913,0.22549,163.73,163.72,0.2986027]
[1730634558096,0.32549,163.73,163.72,0.2986027]
[1730634558302,0.22549,163.73,163.72,0.2986027]
[1730634558509,0.32549,163.73,163.72,0.2986027]
[1730634559014,112.683354,163.73,163.72,0.2986027]
[1730634559608,24.353354,163.73,163.72,0.2986027]
[1730634559815,24.102374,163.73,163.72,0.2986027]
[1730634560602,23.902374,163.73,163.72,0.2986027]
[1730634560810,70.0,163.77,163.72,0.2986027]
[1730634560811,0.2,163.77,163.72,0.2986027]
[1730634561005,0.2,163.75,163.72,0.2986027]
[1730634561214,0.1,163.74,163.72,0.2986027]
[1730634562809,0.1,163.75,163.72,0.2986027]
[1730634563115,0.1,163.74,163.72,0.2986027]
[1730634563710,0.1,163.75,163.72,0.2986027]
[1730634563906,2.445564,163.76,163.72,0.2986027]
[1730634564327,0.1,163.77,163.72,0.2986027]
[1730634565003,15.7817,163.79,163.72,0.2986027]
[1730634565210,0.1,163.79,163.72,0.2986027]
[1730634565404,0.1,163.8,163.72,0.2986027]
[1730634565623,0.1,163.79,163.72,0.2986027]
[1730634565813,0.1,163.8,163.72,0.2986027]
[1730634566330,24.127864,163.81,163.72,0.2986027]
[1730634566912,0.1,163.79,163.72,0.2986027]
[1730634568332,0.1,163.8,163.72,0.2986027]
[1730634569302,0.1,163.79,163.72,0.2986027]
[1730634569508,0.2,163.79,163.72,0.2986027]
[1730634570725,0.1,163.81,163.72,0.2986027]
[1730634572606,21.476884,163.82,163.72,0.3986027]
[1730634573530,0.12549,163.81,163.72,0.2986027]